[Event "Early-Titled-Tuesday-Blitz-February-20-2024"]
[Site "Chess.com"]
[Date "2024.02.20"]
[Round "7"]
[White "picturesquecheck"]
[Black "Goffredo_Fofi"]
[Result "1-0"]
[WhiteElo "2448"]
[BlackElo "2540"]
[TimeControl "180+1"]
[EndTime "9:20:15 PST"]
[Termination "picturesquecheck won by resignation"]

1. e4 {[%clk 0:03:00.9]} 1... g6 {[%clk 0:03:00.9]} 2. d4 {[%clk 0:02:57.9]}
2... Bg7 {[%clk 0:03:01.3]} 3. Nc3 {[%clk 0:02:57.3]} 3... c6 {[%clk 0:03:01.8]}
4. Nf3 {[%clk 0:02:57.1]} 4... d5 {[%clk 0:03:02.3]} 5. e5 {[%clk 0:02:57.7]}
5... f6 {[%clk 0:03:02.1]} 6. exf6 {[%clk 0:02:57.3]} 6... Nxf6 {[%clk 0:03:03]}
7. Be2 {[%clk 0:02:55.4]} 7... O-O {[%clk 0:03:02.1]} 8. O-O {[%clk 0:02:53.6]}
8... Bf5 {[%clk 0:02:57]} 9. Bf4 {[%clk 0:02:46.9]} 9... Nbd7 {[%clk 0:02:56.7]}
10. Re1 {[%clk 0:02:44.7]} 10... Nh5 {[%clk 0:02:44.5]} 11. Be3 {[%clk
0:02:38.4]} 11... Qc7 {[%clk 0:02:00.2]} 12. Qd2 {[%clk 0:02:30.5]} 12... e5
{[%clk 0:01:57.2]} 13. dxe5 {[%clk 0:02:14.9]} 13... Nxe5 {[%clk 0:01:57.1]} 14.
Nxe5 {[%clk 0:02:14.8]} 14... Bxe5 {[%clk 0:01:58]} 15. Bxh5 {[%clk 0:02:09.6]}
15... gxh5 {[%clk 0:01:49.6]} 16. h3 {[%clk 0:02:01.5]} 16... Rf6 {[%clk
0:01:11]} 17. Bg5 {[%clk 0:01:39.5]} 17... Rg6 {[%clk 0:01:08.6]} 18. Nxd5
{[%clk 0:01:33.9]} 18... cxd5 {[%clk 0:00:34.7]} 19. Qxd5+ {[%clk 0:01:33.6]}
19... Be6 {[%clk 0:00:35.1]} 20. Qxe5 {[%clk 0:01:32]} 20... Qxe5 {[%clk
0:00:35.7]} 21. Rxe5 {[%clk 0:01:32.3]} 21... h6 {[%clk 0:00:36.3]} 22. Be3
{[%clk 0:01:27.8]} 22... Bxh3 {[%clk 0:00:36]} 23. g3 {[%clk 0:01:26.5]} 23...
Bg4 {[%clk 0:00:27.3]} 24. Kh2 {[%clk 0:01:21.7]} 24... Rd8 {[%clk 0:00:24.8]}
25. Re7 {[%clk 0:01:19.3]} 25... h4 {[%clk 0:00:18.6]} 26. gxh4 {[%clk
0:01:14.4]} 26... Bf3 {[%clk 0:00:18.5]} 27. Rg1 {[%clk 0:01:07.1]} 27... Rxg1
{[%clk 0:00:18.4]} 28. Kxg1 {[%clk 0:01:07.4]} 28... Rd1+ {[%clk 0:00:15.6]} 29.
Kh2 {[%clk 0:01:07.5]} 29... Ra1 {[%clk 0:00:11.7]} 30. a3 {[%clk 0:01:06.9]}
30... b5 {[%clk 0:00:09.6]} 31. Kg3 {[%clk 0:01:04.6]} 31... Bd5 {[%clk
0:00:08.9]} 32. Rxa7 {[%clk 0:01:03.4]} 32... Rc1 {[%clk 0:00:07.5]} 33. c3
{[%clk 0:01:02.8]} 33... Rg1+ {[%clk 0:00:05.6]} 34. Kf4 {[%clk 0:01:02.4]}
34... Be6 {[%clk 0:00:03.1]} 35. Ke5 {[%clk 0:01:02]} 35... Bg4 {[%clk
0:00:02.9]} 36. Bxh6 {[%clk 0:01:01.3]} 36... Be2 {[%clk 0:00:03.2]} 37. Be3
{[%clk 0:01:00.1]} 37... Bc4 {[%clk 0:00:03.5]} 38. Kd6 {[%clk 0:01:00.2]} 38...
Rg6+ {[%clk 0:00:03.6]} 39. Kc5 {[%clk 0:00:59.7]} 39... Rf6 {[%clk 0:00:04.2]}
40. Ra8+ {[%clk 0:00:58]} 40... Kh7 {[%clk 0:00:04.2]} 41. Bd4 {[%clk
0:00:56.8]} 41... Rf5+ {[%clk 0:00:04.7]} 42. Kb4 {[%clk 0:00:57.1]} 42... Rf7
{[%clk 0:00:04.2]} 43. Rh8+ {[%clk 0:00:55.8]} 43... Kg6 {[%clk 0:00:04.3]} 44.
h5+ {[%clk 0:00:56.4]} 44... Kg5 {[%clk 0:00:04.9]} 45. h6 {[%clk 0:00:55.6]}
45... Bd3 {[%clk 0:00:05.2]} 46. Be3+ {[%clk 0:00:44.5]} 46... Kh5 {[%clk
0:00:05.1]} 47. Rd8 {[%clk 0:00:41.7]} 47... Bc4 {[%clk 0:00:04.7]} 48. Rd1
{[%clk 0:00:38.8]} 48... Kg6 {[%clk 0:00:05]} 49. Rg1+ {[%clk 0:00:37.5]} 49...
Kh7 {[%clk 0:00:05.1]} 50. Rg7+ {[%clk 0:00:37.3]} 50... Rxg7 {[%clk 0:00:05]}
51. hxg7 {[%clk 0:00:38.2]} 51... Kxg7 {[%clk 0:00:05.8]} 52. a4 {[%clk
0:00:38.3]} 52... Be2 {[%clk 0:00:06.5]} 53. axb5 {[%clk 0:00:38.1]} 53... Kf7
{[%clk 0:00:06.7]} 54. b6 {[%clk 0:00:38.6]} 54... Ke6 {[%clk 0:00:07.4]} 55. c4
{[%clk 0:00:38.4]} 55... Kd7 {[%clk 0:00:07.2]} 56. c5 {[%clk 0:00:38.6]} 56...
Kc6 {[%clk 0:00:07.9]} 57. Kc3 {[%clk 0:00:37.7]} 57... Bf1 {[%clk 0:00:07.8]}
58. b4 {[%clk 0:00:38.2]} 58... Ba6 {[%clk 0:00:07.5]} 59. Kd4 {[%clk
0:00:38.6]} 59... Bb7 {[%clk 0:00:08.4]} 60. Ke5 {[%clk 0:00:36.9]} 60... Kb5
{[%clk 0:00:08.9]} 61. f4 {[%clk 0:00:36.6]} 61... Kxb4 {[%clk 0:00:09.2]} 62.
Kd6 {[%clk 0:00:37]} 62... Kb5 {[%clk 0:00:09.5]} 63. f5 {[%clk 0:00:37.3]} 1-0

[Event "Early-Titled-Tuesday-Blitz-February-20-2024"]
[Site "Chess.com"]
[Date "2024.02.20"]
[Round "7"]
[White "DavidGavrilescu18"]
[Black "rhungaski"]
[Result "0-1"]
[WhiteElo "2753"]
[BlackElo "2589"]
[TimeControl "180+1"]
[EndTime "9:20:16 PST"]
[Termination "rhungaski won by checkmate"]

1. e4 {[%clk 0:03:00.9]} 1... g6 {[%clk 0:02:59.4]} 2. d4 {[%clk 0:02:55.9]}
2... Bg7 {[%clk 0:02:59.8]} 3. Nf3 {[%clk 0:02:56.8]} 3... d6 {[%clk 0:02:59.6]}
4. Bd3 {[%clk 0:02:57.3]} 4... a6 {[%clk 0:02:59.7]} 5. O-O {[%clk 0:02:57.5]}
5... Nd7 {[%clk 0:02:59.9]} 6. Re1 {[%clk 0:02:56]} 6... e5 {[%clk 0:02:52.1]}
7. c3 {[%clk 0:02:56.3]} 7... Ngf6 {[%clk 0:02:50.2]} 8. a4 {[%clk 0:02:56.7]}
8... O-O {[%clk 0:02:48.6]} 9. h3 {[%clk 0:02:54.6]} 9... b6 {[%clk 0:02:46.1]}
10. Na3 {[%clk 0:02:50.9]} 10... Bb7 {[%clk 0:02:44.4]} 11. a5 {[%clk
0:02:50.2]} 11... b5 {[%clk 0:02:44.3]} 12. d5 {[%clk 0:02:50.8]} 12... c6
{[%clk 0:02:40.1]} 13. dxc6 {[%clk 0:02:50.8]} 13... Bxc6 {[%clk 0:02:40.1]} 14.
Nc2 {[%clk 0:02:48]} 14... Nc5 {[%clk 0:02:36.8]} 15. Bg5 {[%clk 0:02:47.4]}
15... h6 {[%clk 0:02:23.1]} 16. Bxf6 {[%clk 0:02:46.8]} 16... Qxf6 {[%clk
0:02:15.8]} 17. Nb4 {[%clk 0:02:47.3]} 17... Bb7 {[%clk 0:02:15.8]} 18. Bc2
{[%clk 0:02:47.2]} 18... Rad8 {[%clk 0:02:04.5]} 19. Nh2 {[%clk 0:02:47.1]}
19... h5 {[%clk 0:02:03.5]} 20. Nf1 {[%clk 0:02:47.4]} 20... Bh6 {[%clk
0:02:02.6]} 21. Nd5 {[%clk 0:02:47.1]} 21... Bxd5 {[%clk 0:01:51.4]} 22. Qxd5
{[%clk 0:02:48]} 22... Qe6 {[%clk 0:01:48.2]} 23. Rad1 {[%clk 0:02:47.2]} 23...
Qxd5 {[%clk 0:01:48.1]} 24. Rxd5 {[%clk 0:02:48.1]} 24... Nb7 {[%clk 0:01:42.5]}
25. b4 {[%clk 0:02:47.1]} 25... Rc8 {[%clk 0:01:42.8]} 26. Rd3 {[%clk
0:02:47.2]} 26... Rc7 {[%clk 0:01:19]} 27. Ng3 {[%clk 0:02:42]} 27... Rfc8
{[%clk 0:01:16.2]} 28. Ne2 {[%clk 0:02:42.4]} 28... h4 {[%clk 0:01:13.7]} 29.
Bb3 {[%clk 0:02:41.7]} 29... Bg5 {[%clk 0:01:12.1]} 30. Rf1 {[%clk 0:02:35.1]}
30... Kg7 {[%clk 0:01:11.7]} 31. f4 {[%clk 0:02:32.7]} 31... Bxf4 {[%clk
0:01:09.9]} 32. Nxf4 {[%clk 0:02:33.3]} 32... exf4 {[%clk 0:01:10.8]} 33. Rxf4
{[%clk 0:02:33.7]} 33... Nd8 {[%clk 0:00:57.7]} 34. Rff3 {[%clk 0:02:33.2]}
34... Nc6 {[%clk 0:00:47.7]} 35. Rxd6 {[%clk 0:02:28.5]} 35... Ne5 {[%clk
0:00:48.6]} 36. Re3 {[%clk 0:02:21.2]} 36... Rxc3 {[%clk 0:00:49]} 37. Rxc3
{[%clk 0:02:22.1]} 37... Rxc3 {[%clk 0:00:49.2]} 38. Bd5 {[%clk 0:02:22.7]}
38... Rc1+ {[%clk 0:00:38.4]} 39. Kf2 {[%clk 0:02:23]} 39... Nd3+ {[%clk
0:00:38.7]} 40. Kf3 {[%clk 0:02:16]} 40... Nxb4 {[%clk 0:00:39.6]} 41. Kg4
{[%clk 0:02:15.9]} 41... Rc2 {[%clk 0:00:23.8]} 42. Kf3 {[%clk 0:02:07.8]} 42...
Rd2 {[%clk 0:00:20.5]} 43. Rd7 {[%clk 0:02:05.7]} 43... Nxd5 {[%clk 0:00:20.8]}
44. exd5 {[%clk 0:02:06.6]} 44... Ra2 {[%clk 0:00:21.2]} 45. d6 {[%clk
0:02:03.7]} 45... Rxa5 {[%clk 0:00:21.6]} 46. Rd8 {[%clk 0:01:53.6]} 46... Kf6
{[%clk 0:00:21.3]} 47. Re8 {[%clk 0:01:53.9]} 47... Ra3+ {[%clk 0:00:21.4]} 48.
Ke2 {[%clk 0:01:50]} 48... Ra2+ {[%clk 0:00:21.4]} 49. Kd1 {[%clk 0:01:50.3]}
49... Ra4 {[%clk 0:00:21.3]} 50. Rh8 {[%clk 0:01:13.2]} 50... Rd4+ {[%clk
0:00:20]} 51. Kc2 {[%clk 0:01:13.9]} 51... Rxd6 {[%clk 0:00:16.6]} 52. Rxh4
{[%clk 0:01:14.2]} 52... a5 {[%clk 0:00:15.8]} 53. Kb3 {[%clk 0:01:14.2]} 53...
Rd3+ {[%clk 0:00:15.3]} 54. Kc2 {[%clk 0:01:14]} 54... Rg3 {[%clk 0:00:15.6]}
55. Rf4+ {[%clk 0:01:14.4]} 55... Kg7 {[%clk 0:00:15.4]} 56. Rf2 {[%clk
0:01:15.3]} 56... a4 {[%clk 0:00:15.1]} 57. Kb2 {[%clk 0:01:16.1]} 57... b4
{[%clk 0:00:15.3]} 58. Ka2 {[%clk 0:01:16.7]} 58... f5 {[%clk 0:00:14.7]} 59.
Rd2 {[%clk 0:01:15.8]} 59... Kh6 {[%clk 0:00:14.3]} 60. h4 {[%clk 0:01:15.8]}
60... Kh5 {[%clk 0:00:14.1]} 61. Rd8 {[%clk 0:01:16.1]} 61... Rxg2+ {[%clk
0:00:14]} 62. Kb1 {[%clk 0:01:16]} 62... Kxh4 {[%clk 0:00:13.8]} 63. Rd4+ {[%clk
0:01:16.7]} 63... Rg4 {[%clk 0:00:12.9]} 64. Rd6 {[%clk 0:01:17.3]} 64... Kg5
{[%clk 0:00:13.2]} 65. Kc2 {[%clk 0:01:17.5]} 65... b3+ {[%clk 0:00:13.5]} 66.
Kb2 {[%clk 0:01:18]} 66... Re4 {[%clk 0:00:14.2]} 67. Ka3 {[%clk 0:01:17.5]}
67... Kh5 {[%clk 0:00:13.9]} 68. Rd8 {[%clk 0:01:17.6]} 68... g5 {[%clk
0:00:13.7]} 69. Rh8+ {[%clk 0:01:18.3]} 69... Kg4 {[%clk 0:00:14.2]} 70. Rc8
{[%clk 0:01:17.4]} 70... f4 {[%clk 0:00:14]} 71. Rf8 {[%clk 0:01:17.8]} 71... f3
{[%clk 0:00:14]} 72. Rf7 {[%clk 0:01:17.6]} 72... Rf4 {[%clk 0:00:14.3]} 73. Rd7
{[%clk 0:01:14.8]} 73... f2 {[%clk 0:00:14.4]} 74. Rd1 {[%clk 0:01:15.4]} 74...
f1=Q {[%clk 0:00:14.2]} 75. Rxf1 {[%clk 0:01:16.3]} 75... Rxf1 {[%clk
0:00:14.1]} 76. Kb2 {[%clk 0:01:17.2]} 76... Rf2+ {[%clk 0:00:14]} 77. Ka3
{[%clk 0:01:18.1]} 77... Ra2+ {[%clk 0:00:13.6]} 78. Kb4 {[%clk 0:01:18.7]}
78... b2 {[%clk 0:00:13.7]} 79. Kc3 {[%clk 0:01:19.6]} 79... b1=Q {[%clk
0:00:12.7]} 80. Kd4 {[%clk 0:01:20.5]} 80... Rd2+ {[%clk 0:00:12.4]} 81. Ke5
{[%clk 0:01:21.4]} 81... Qe1+ {[%clk 0:00:10.9]} 82. Kf6 {[%clk 0:01:22.3]}
82... Rd6+ {[%clk 0:00:10.9]} 83. Kg7 {[%clk 0:01:22.7]} 83... Qe7+ {[%clk
0:00:10.9]} 84. Kh8 {[%clk 0:01:23.6]} 84... Rd8# {[%clk 0:00:11.2]} 0-1

[Event "Early-Titled-Tuesday-Blitz-February-20-2024"]
[Site "Chess.com"]
[Date "2024.02.20"]
[Round "7"]
[White "chessdjw"]
[Black "LiadCuba"]
[Result "1-0"]
[WhiteElo "2744"]
[BlackElo "2514"]
[TimeControl "180+1"]
[EndTime "9:20:18 PST"]
[Termination "chessdjw won on time"]

1. d4 {[%clk 0:03:00.6]} 1... d5 {[%clk 0:02:59.7]} 2. c4 {[%clk 0:03:01.1]}
2... e6 {[%clk 0:02:59.8]} 3. Nc3 {[%clk 0:03:01.3]} 3... Nf6 {[%clk 0:03:00.1]}
4. cxd5 {[%clk 0:03:01.5]} 4... Nxd5 {[%clk 0:03:01]} 5. e4 {[%clk 0:03:01.4]}
5... Nxc3 {[%clk 0:03:01.3]} 6. bxc3 {[%clk 0:03:02.3]} 6... c5 {[%clk 0:03:02]}
7. Rb1 {[%clk 0:03:01.6]} 7... cxd4 {[%clk 0:02:58.7]} 8. cxd4 {[%clk
0:03:01.8]} 8... e5 {[%clk 0:02:57.3]} 9. dxe5 {[%clk 0:02:55.1]} 9... Qxd1+
{[%clk 0:02:58.2]} 10. Kxd1 {[%clk 0:02:54.9]} 10... Nc6 {[%clk 0:02:57.6]} 11.
f4 {[%clk 0:02:53.2]} 11... Be6 {[%clk 0:02:53.4]} 12. a3 {[%clk 0:02:35.1]}
12... O-O-O+ {[%clk 0:02:50.4]} 13. Ke1 {[%clk 0:02:35.8]} 13... Nd4 {[%clk
0:02:29.9]} 14. Nf3 {[%clk 0:02:33.9]} 14... Bc5 {[%clk 0:02:12.6]} 15. Nxd4
{[%clk 0:02:32]} 15... Rxd4 {[%clk 0:02:13.5]} 16. Rb2 {[%clk 0:01:48.5]} 16...
Rhd8 {[%clk 0:01:52.4]} 17. Be2 {[%clk 0:01:42.7]} 17... Rxe4 {[%clk 0:01:44.4]}
18. Rc2 {[%clk 0:01:32.7]} 18... b6 {[%clk 0:01:33.6]} 19. Rf1 {[%clk
0:01:27.7]} 19... Bg4 {[%clk 0:01:18.3]} 20. h3 {[%clk 0:01:25.6]} 20... Bxe2
{[%clk 0:01:03.3]} 21. Rxe2 {[%clk 0:01:26.5]} 21... Rc4 {[%clk 0:01:03.1]} 22.
Bb2 {[%clk 0:01:18.1]} 22... Rd3 {[%clk 0:00:42.7]} 23. f5 {[%clk 0:01:16.2]}
23... Kd7 {[%clk 0:00:38.5]} 24. e6+ {[%clk 0:01:13.4]} 24... Ke8 {[%clk
0:00:33.1]} 25. f6 {[%clk 0:00:59.1]} 25... gxf6 {[%clk 0:00:29.8]} 26. exf7+
{[%clk 0:00:57.7]} 26... Kf8 {[%clk 0:00:20.4]} 27. Rxf6 {[%clk 0:00:57.3]}
27... Re3 {[%clk 0:00:16.9]} 28. Rxe3 {[%clk 0:00:54.4]} 28... Bxe3 {[%clk
0:00:17.8]} 29. Rf5 {[%clk 0:00:27.8]} 29... Bd4 {[%clk 0:00:16]} 30. Bxd4
{[%clk 0:00:15.2]} 30... Rxd4 {[%clk 0:00:16.9]} 31. Ke2 {[%clk 0:00:13.6]}
31... Rd7 {[%clk 0:00:15.4]} 32. g4 {[%clk 0:00:10]} 32... Rxf7 {[%clk
0:00:14.6]} 33. Rh5 {[%clk 0:00:10.7]} 33... Ke7 {[%clk 0:00:14.2]} 34. Kd3
{[%clk 0:00:10.7]} 34... Kd6 {[%clk 0:00:12.2]} 35. Kc4 {[%clk 0:00:10.8]} 35...
Kc6 {[%clk 0:00:12.1]} 36. Rh6+ {[%clk 0:00:10.7]} 36... Kb7 {[%clk 0:00:12.1]}
37. g5 {[%clk 0:00:11.1]} 37... a5 {[%clk 0:00:09.6]} 38. h4 {[%clk 0:00:10.1]}
38... Ka6 {[%clk 0:00:09.2]} 39. a4 {[%clk 0:00:09.5]} 39... Rf4+ {[%clk
0:00:06.8]} 40. Kb3 {[%clk 0:00:09.9]} 40... Rf7 {[%clk 0:00:06.6]} 41. h5
{[%clk 0:00:09.9]} 41... Rf3+ {[%clk 0:00:06.4]} 42. Kc2 {[%clk 0:00:09.9]}
42... Rf2+ {[%clk 0:00:06.3]} 43. Kd3 {[%clk 0:00:10]} 43... Rf3+ {[%clk
0:00:04.9]} 44. Ke4 {[%clk 0:00:10.2]} 44... Rg3 {[%clk 0:00:03.6]} 45. Kf4
{[%clk 0:00:10.1]} 45... Ra3 {[%clk 0:00:03.5]} 46. Rxh7 {[%clk 0:00:10.7]}
46... Rxa4+ {[%clk 0:00:03.9]} 47. Kf5 {[%clk 0:00:11]} 47... Ra1 {[%clk
0:00:04.3]} 48. g6 {[%clk 0:00:11.4]} 48... Rf1+ {[%clk 0:00:04.7]} 49. Kg4
{[%clk 0:00:10.9]} 49... Rg1+ {[%clk 0:00:04.5]} 50. Kf3 {[%clk 0:00:11.5]}
50... a4 {[%clk 0:00:04.4]} 51. Rh8 {[%clk 0:00:10.4]} 51... Kb7 {[%clk
0:00:01]} 52. Rh7+ {[%clk 0:00:09]} 1-0

[Event "Early-Titled-Tuesday-Blitz-February-20-2024"]
[Site "Chess.com"]
[Date "2024.02.20"]
[Round "7"]
[White "margarita_2703"]
[Black "Kotlyar_K"]
[Result "0-1"]
[WhiteElo "2383"]
[BlackElo "2589"]
[TimeControl "180+1"]
[EndTime "9:20:20 PST"]
[Termination "Kotlyar_K won by resignation"]

1. e4 {[%clk 0:03:00.9]} 1... e5 {[%clk 0:02:59.8]} 2. Nf3 {[%clk 0:03:01]} 2...
Nc6 {[%clk 0:02:57.5]} 3. Bc4 {[%clk 0:03:00]} 3... Nf6 {[%clk 0:02:56.5]} 4.
O-O {[%clk 0:02:34.6]} 4... Be7 {[%clk 0:02:19.8]} 5. c3 {[%clk 0:02:29.9]} 5...
Nxe4 {[%clk 0:02:14.3]} 6. Re1 {[%clk 0:02:28.5]} 6... Nd6 {[%clk 0:02:14.8]} 7.
Bb3 {[%clk 0:02:17.8]} 7... e4 {[%clk 0:02:10.6]} 8. Nd4 {[%clk 0:02:10.3]} 8...
Nxd4 {[%clk 0:02:10]} 9. cxd4 {[%clk 0:02:11.2]} 9... O-O {[%clk 0:02:10.2]} 10.
d3 {[%clk 0:02:11.5]} 10... exd3 {[%clk 0:02:06.9]} 11. Qxd3 {[%clk 0:02:12.4]}
11... Bg5 {[%clk 0:02:01.9]} 12. Bc2 {[%clk 0:02:10.5]} 12... g6 {[%clk
0:02:01.8]} 13. Nc3 {[%clk 0:02:09.2]} 13... c6 {[%clk 0:01:54.4]} 14. Qg3
{[%clk 0:02:02.6]} 14... Bxc1 {[%clk 0:01:52.9]} 15. Qxd6 {[%clk 0:02:02.3]}
15... Bg5 {[%clk 0:01:23.3]} 16. d5 {[%clk 0:01:27.2]} 16... Qf6 {[%clk
0:01:23.2]} 17. Ne4 {[%clk 0:01:16.5]} 17... Qxd6 {[%clk 0:01:22.4]} 18. Nxd6
{[%clk 0:01:17.4]} 18... Bf4 {[%clk 0:01:18.6]} 19. Ne4 {[%clk 0:01:14]} 19...
cxd5 {[%clk 0:01:18.7]} 20. Nf6+ {[%clk 0:01:14.1]} 20... Kh8 {[%clk 0:01:11.3]}
21. Nxd5 {[%clk 0:01:15]} 21... Bh6 {[%clk 0:01:06.4]} 22. Be4 {[%clk
0:01:07.4]} 22... Bg7 {[%clk 0:01:04.6]} 23. Rab1 {[%clk 0:00:55.9]} 23... Rb8
{[%clk 0:01:03.9]} 24. b3 {[%clk 0:00:49.8]} 24... b5 {[%clk 0:01:02.9]} 25. Bd3
{[%clk 0:00:21.9]} 25... a6 {[%clk 0:00:58.4]} 26. Ne3 {[%clk 0:00:17.4]} 26...
Bb7 {[%clk 0:00:57.1]} 27. Rbc1 {[%clk 0:00:17.2]} 27... Rbc8 {[%clk 0:00:56]}
28. f3 {[%clk 0:00:16.2]} 28... Bd4 {[%clk 0:00:53.6]} 29. Kf2 {[%clk
0:00:16.4]} 29... Kg7 {[%clk 0:00:53.8]} 30. Ke2 {[%clk 0:00:15]} 30... Rxc1
{[%clk 0:00:52.6]} 31. Rxc1 {[%clk 0:00:15.9]} 31... Re8 {[%clk 0:00:52.4]} 32.
Rc7 {[%clk 0:00:09.8]} 32... Bc6 {[%clk 0:00:50.6]} 33. Be4 {[%clk 0:00:08.7]}
33... Bxe3 {[%clk 0:00:39.9]} 34. Bxc6 {[%clk 0:00:02.6]} 34... dxc6 {[%clk
0:00:39.4]} 35. Rxc6 {[%clk 0:00:03.1]} 35... a5 {[%clk 0:00:38.7]} 36. Kd3
{[%clk 0:00:04]} 36... Bg1 {[%clk 0:00:37.5]} 37. h3 {[%clk 0:00:04]} 37... Rd8+
{[%clk 0:00:34.5]} 38. Kc2 {[%clk 0:00:04]} 38... Bf2 {[%clk 0:00:32.7]} 39. Ra6
{[%clk 0:00:03.4]} 39... Be1 {[%clk 0:00:32.8]} 40. Rc6 {[%clk 0:00:02.1]} 40...
Rd5 {[%clk 0:00:32.1]} 41. a4 {[%clk 0:00:01.8]} 41... bxa4 {[%clk 0:00:32.1]}
42. bxa4 {[%clk 0:00:02.7]} 42... Bb4 {[%clk 0:00:31.8]} 43. Kb3 {[%clk
0:00:03.1]} 43... Rd2 {[%clk 0:00:31.8]} 44. Rc2 {[%clk 0:00:03.7]} 44... Rxc2
{[%clk 0:00:29.2]} 45. Kxc2 {[%clk 0:00:04.6]} 45... Kf6 {[%clk 0:00:29.8]} 46.
Kd3 {[%clk 0:00:05.5]} 46... Kg5 {[%clk 0:00:30.7]} 47. Ke3 {[%clk 0:00:05.5]}
47... h5 {[%clk 0:00:29.7]} 48. Kf2 {[%clk 0:00:06.4]} 48... h4 {[%clk
0:00:30.2]} 49. Ke3 {[%clk 0:00:05]} 49... Bc5+ {[%clk 0:00:30.5]} 50. Ke4
{[%clk 0:00:05.3]} 50... Bf2 {[%clk 0:00:27.4]} 51. f4+ {[%clk 0:00:05.5]} 51...
Kf6 {[%clk 0:00:27.5]} 52. Kf3 {[%clk 0:00:05.2]} 52... Be1 {[%clk 0:00:28.1]}
53. Kg4 {[%clk 0:00:05.7]} 53... Bg3 {[%clk 0:00:25.3]} 54. Kf3 {[%clk
0:00:04.1]} 54... Kf5 {[%clk 0:00:26.2]} 0-1

[Event "Early-Titled-Tuesday-Blitz-February-20-2024"]
[Site "Chess.com"]
[Date "2024.02.20"]
[Round "7"]
[White "mestrefeitosa19"]
[Black "Grande_Strategia"]
[Result "0-1"]
[WhiteElo "2244"]
[BlackElo "2513"]
[TimeControl "180+1"]
[EndTime "9:20:20 PST"]
[Termination "Grande_Strategia won by checkmate"]

1. c4 {[%clk 0:03:00.9]} 1... f6 {[%clk 0:03:00.9]} 2. d4 {[%clk 0:03:00.1]}
2... Kf7 {[%clk 0:03:01.8]} 3. Qb3 {[%clk 0:02:58]} 3... g5 {[%clk 0:03:00.3]}
4. Nc3 {[%clk 0:02:58.3]} 4... e6 {[%clk 0:02:54.3]} 5. e4 {[%clk 0:02:58.5]}
5... h6 {[%clk 0:02:53.1]} 6. f4 {[%clk 0:02:58.7]} 6... Kg7 {[%clk 0:02:53.1]}
7. Nf3 {[%clk 0:02:58.9]} 7... Ne7 {[%clk 0:02:52.1]} 8. Bd3 {[%clk 0:02:58]}
8... b6 {[%clk 0:02:51.6]} 9. O-O {[%clk 0:02:58.3]} 9... Bb7 {[%clk 0:02:51.6]}
10. fxg5 {[%clk 0:02:58.8]} 10... hxg5 {[%clk 0:02:46.6]} 11. Qc2 {[%clk
0:02:58.7]} 11... g4 {[%clk 0:02:34.4]} 12. Ne1 {[%clk 0:02:55]} 12... Nbc6
{[%clk 0:02:33.3]} 13. Qf2 {[%clk 0:02:54.3]} 13... Ng6 {[%clk 0:02:29.1]} 14.
Nc2 {[%clk 0:02:49.3]} 14... e5 {[%clk 0:02:18.6]} 15. d5 {[%clk 0:02:47.9]}
15... Nb4 {[%clk 0:02:14.1]} 16. Nxb4 {[%clk 0:02:44.5]} 16... Bxb4 {[%clk
0:02:15]} 17. Qf5 {[%clk 0:02:40]} 17... g3 {[%clk 0:02:04.6]} 18. h3 {[%clk
0:02:23.7]} 18... d6 {[%clk 0:02:04.6]} 19. Ne2 {[%clk 0:02:11.8]} 19... Bc5+
{[%clk 0:01:44]} 20. Kh1 {[%clk 0:02:10.8]} 20... Bc8 {[%clk 0:01:44.2]} 21. Qf3
{[%clk 0:02:10.2]} 21... Bxh3 {[%clk 0:01:23.4]} 22. gxh3 {[%clk 0:02:04.3]}
22... Rxh3+ {[%clk 0:01:23]} 23. Kg2 {[%clk 0:02:04.8]} 23... Nh4+ {[%clk
0:01:11.4]} 24. Kxh3 {[%clk 0:02:02.4]} 24... Nxf3 {[%clk 0:01:11.9]} 25. Rxf3
{[%clk 0:01:59]} 25... Qh8+ {[%clk 0:01:12]} 26. Kxg3 {[%clk 0:01:59.2]} 26...
Rg8 {[%clk 0:01:12.2]} 27. Kg2 {[%clk 0:01:54.9]} 27... Kf7+ {[%clk 0:00:42.8]}
28. Ng3 {[%clk 0:01:53.2]} 28... Bg1 {[%clk 0:00:26.6]} 29. Kxg1 {[%clk
0:01:48.1]} 29... Qh3 {[%clk 0:00:25.6]} 30. Kf2 {[%clk 0:01:27.4]} 30... Qh2+
{[%clk 0:00:24.8]} 31. Ke1 {[%clk 0:01:21.1]} 31... Rxg3 {[%clk 0:00:24.5]} 32.
Rxg3 {[%clk 0:01:18.7]} 32... Qxg3+ {[%clk 0:00:24.6]} 33. Kd2 {[%clk
0:01:17.1]} 33... Qf2+ {[%clk 0:00:21.9]} 34. Kc3 {[%clk 0:01:14.6]} 34... Qe1+
{[%clk 0:00:18]} 35. Kc2 {[%clk 0:01:09.8]} 35... f5 {[%clk 0:00:17.1]} 36. b3
{[%clk 0:00:21.9]} 36... fxe4 {[%clk 0:00:15.9]} 37. Bb2 {[%clk 0:00:22.4]}
37... exd3+ {[%clk 0:00:16]} 38. Kxd3 {[%clk 0:00:22.3]} 38... Qf2 {[%clk
0:00:12]} 39. Bc3 {[%clk 0:00:18.2]} 39... Qf3+ {[%clk 0:00:11.3]} 40. Kc2
{[%clk 0:00:17.5]} 40... Qe4+ {[%clk 0:00:11.4]} 41. Kb2 {[%clk 0:00:16.3]}
41... Qe2+ {[%clk 0:00:11.5]} 42. Kc1 {[%clk 0:00:13.7]} 42... Qd3 {[%clk
0:00:10.4]} 43. Kb2 {[%clk 0:00:13]} 43... Qe2+ {[%clk 0:00:10.7]} 44. Ka3
{[%clk 0:00:12.8]} 44... a5 {[%clk 0:00:11]} 45. Re1 {[%clk 0:00:12.1]} 45...
Qc2 {[%clk 0:00:10.9]} 46. Rf1+ {[%clk 0:00:10.4]} 46... Ke7 {[%clk 0:00:10.7]}
47. Bb2 {[%clk 0:00:10.1]} 47... e4 {[%clk 0:00:09.7]} 48. Re1 {[%clk
0:00:08.8]} 48... Kd7 {[%clk 0:00:07.6]} 49. Re3 {[%clk 0:00:07.9]} 49... Qd2
{[%clk 0:00:07]} 50. Rc3 {[%clk 0:00:06.5]} 50... e3 {[%clk 0:00:07.1]} 51. Rc1
{[%clk 0:00:05.6]} 51... Qb4# {[%clk 0:00:06.7]} 0-1